bitfinex/quotes_BTCUSD_20240602
["timestamp","ask_amount","ask_price","bid_price","bid_amount"]
[1717290154146,0.227884,67896.0,67895.0,0.21278839]
[1717290154343,0.227884,67896.0,67895.0,0.20778839]
[1717290154970,0.227884,67896.0,67895.0,0.21278839]
[1717290156045,0.227884,67896.0,67895.0,0.20778839]
[1717290157756,0.32663725,67896.0,67895.0,0.20778839]
[1717290159656,0.32663725,67896.0,67895.0,0.21278839]
[1717290163306,0.31862926,67896.0,67895.0,0.21278839]
[1717290165856,0.23902926,67896.0,67895.0,0.21278839]
[1717290168804,0.23902926,67896.0,67895.0,0.20778839]
[1717290169035,0.23902926,67896.0,67895.0,0.21278839]
[1717290169835,0.23902926,67896.0,67895.0,0.20778839]
[1717290170456,0.23902926,67896.0,67895.0,0.21278839]
[1717290171487,0.23880833,67896.0,67895.0,0.21278839]
[1717290172353,0.23880833,67896.0,67895.0,0.20778839]
[1717290174503,0.23880833,67896.0,67895.0,0.21278839]
[1717290175263,0.24441993,67896.0,67895.0,0.21278839]
[1717290181084,0.24441993,67896.0,67895.0,0.20778839]
[1717290183224,0.15367467,67896.0,67895.0,0.20778839]
[1717290184709,0.23573497,67896.0,67895.0,0.20778839]
[1717290185527,0.23573497,67896.0,67895.0,0.19878839]
[1717290185528,0.23473497,67896.0,67895.0,0.19878839]
[1717290185847,0.15267467,67896.0,67895.0,0.19878839]
[1717290185962,0.15267467,67896.0,67895.0,0.21378839]
[1717290185963,0.15367467,67896.0,67895.0,0.21378839]
[1717290186390,0.15267467,67896.0,67895.0,0.20378839]
[1717290186804,0.15267467,67896.0,67895.0,0.35663413]
[1717290188320,0.16467467,67896.0,67895.0,0.35763413]
[1717290190366,0.16467467,67896.0,67895.0,0.35263413]
[1717290192111,0.16467467,67896.0,67895.0,0.35163413]
[1717290192112,0.15267467,67896.0,67895.0,0.35163413]
[1717290192494,0.16967467,67896.0,67895.0,0.35163413]
[1717290192709,0.15267467,67896.0,67895.0,0.35163413]
[1717290193162,0.16967467,67896.0,67895.0,0.35163413]
[1717290193349,0.15267467,67896.0,67895.0,0.373702]
[1717290193710,0.15267467,67896.0,67895.0,0.35163413]
[1717290194053,0.14706307,67896.0,67895.0,0.35163413]
[1717290194641,0.16506307,67896.0,67895.0,0.35163413]
[1717290194837,0.17066863,67896.0,67895.0,0.25901402]
[1717290196734,0.17066863,67896.0,67895.0,0.28108189]
[1717290196929,0.17066863,67896.0,67895.0,0.373702]
[1717290197264,0.17066863,67896.0,67895.0,0.35163413]
[1717290202331,0.17066863,67896.0,67895.0,0.35163638]
[1717290203187,0.17066863,67896.0,67895.0,0.19878839]
[1717290203388,0.17066863,67896.0,67895.0,0.35163638]
[1717290209639,0.16506307,67896.0,67895.0,0.35163638]
[1717290209863,0.17066703,67896.0,67895.0,0.35163638]
[1717290210438,0.17066703,67896.0,67895.0,0.25901627]
[1717290211355,0.17066703,67896.0,67895.0,0.35163638]
[1717290214998,0.24996703,67896.0,67895.0,0.35163638]
[1717290215195,0.24436307,67896.0,67895.0,0.35163638]
[1717290215351,0.24996703,67896.0,67895.0,0.35163638]
[1717290215760,0.24996703,67896.0,67895.0,0.35663638]
[1717290218407,0.16506307,67896.0,67895.0,0.35663638]
[1717290218751,0.17066703,67896.0,67895.0,0.35663638]
[1717290221601,0.17066703,67896.0,67895.0,0.35163638]
[1717290221773,0.17066703,67896.0,67895.0,0.35663638]
[1717290221973,0.17066703,67896.0,67895.0,0.35163638]
[1717290222481,0.17066703,67896.0,67895.0,0.35164155]
[1717290222821,0.17066703,67896.0,67895.0,0.35664155]
[1717290226645,0.17066703,67896.0,67895.0,0.33890327]
[1717290229848,0.17066703,67896.0,67895.0,0.58710327]
[1717290230164,0.16506307,67896.0,67895.0,0.58710327]
[1717290230773,0.17066642,67896.0,67895.0,0.58710327]
[1717290231512,0.17059278,67896.0,67895.0,0.58710327]
[1717290231881,0.16498943,67896.0,67895.0,0.58710327]
[1717290232450,0.16498943,67896.0,67895.0,0.58710131]
[1717290236260,0.16498943,67896.0,67895.0,0.43425011]
[1717290236464,0.16498943,67896.0,67895.0,0.58710131]
[1717290238607,0.17051953,67896.0,67895.0,0.58710131]
[1717290241410,0.17051953,67896.0,67895.0,0.58210131]
[1717290241634,0.17051953,67896.0,67895.0,0.42150131]
[1717290245846,0.17051953,67896.0,67895.0,0.33390131]
[1717290246661,0.17051953,67896.0,67895.0,0.18105011]
[1717290247795,0.33255984,67896.0,67895.0,0.18105011]
[1717290251377,0.25465984,67896.0,67895.0,0.18605011]
[1717290253900,0.25465984,67896.0,67895.0,0.18105011]
[1717290254759,0.25465984,67896.0,67895.0,0.18605011]
[1717290259056,0.25465984,67896.0,67895.0,0.18105011]
[1717290259568,0.25465984,67896.0,67895.0,0.18605011]
[1717290261910,0.25465984,67896.0,67895.0,0.18105011]
[1717290262103,0.25465984,67896.0,67895.0,0.18605011]
[1717290262306,0.40935984,67896.0,67895.0,0.18605011]
[1717290262774,0.25465984,67896.0,67895.0,0.18605011]
[1717290262983,0.25465984,67896.0,67895.0,0.18105011]
[1717290264322,0.147288,67894.0,67893.0,0.08843]
[1717290264454,0.23142831,67894.0,67893.0,0.08843]
[1717290264687,0.23695423,67894.0,67893.0,0.08843]
[1717290265496,0.08966623,67894.0,67891.0,0.09262011]
[1717290265751,0.08414031,67893.0,67891.0,0.09262011]
[1717290265928,0.08414031,67892.0,67891.0,0.09262011]
[1717290266513,0.15282079,67892.0,67891.0,0.09262011]
[1717290266953,0.23453936,67892.0,67891.0,0.09262011]
[1717290267172,0.23453936,67892.0,67891.0,0.09762011]
[1717290268230,0.24053936,67892.0,67891.0,0.09762011]
[1717290269029,0.24053936,67892.0,67891.0,0.11490961]
[1717290269975,0.24053936,67892.0,67891.0,0.09762011]
[1717290275535,0.24053936,67892.0,67891.0,0.18604011]
[1717290277146,0.24053936,67892.0,67891.0,0.18104011]
[1717290277404,0.15882079,67892.0,67891.0,0.18104011]
[1717290277621,0.24046177,67892.0,67891.0,0.18104011]
[1717290277858,0.23493298,67892.0,67891.0,0.18104011]
[1717290277986,0.24045303,67892.0,67891.0,0.18104011]
[1717290282576,0.39235303,67892.0,67891.0,0.18104011]
[1717290283547,0.24045303,67892.0,67891.0,0.18104011]
[1717290285826,0.23493298,67892.0,67891.0,0.18104011]
[1717290285981,0.24044767,67892.0,67891.0,0.18104011]
[1717290287638,0.31924767,67892.0,67891.0,0.18104011]
[1717290288732,0.24044767,67892.0,67891.0,0.18104011]
[1717290288934,0.23493298,67892.0,67891.0,0.18104011]
[1717290289175,0.24044865,67892.0,67891.0,0.18104011]
[1717290289544,0.24044865,67892.0,67891.0,0.08842]
[1717290289744,0.23493298,67892.0,67891.0,0.18104011]
[1717290290833,0.23493298,67892.0,67891.0,0.08842]
[1717290292638,0.23493298,67892.0,67891.0,0.18104011]
[1717290294165,0.23493298,67892.0,67891.0,0.08842]
[1717290294954,0.23493298,67892.0,67891.0,0.18104011]
[1717290295162,0.23493298,67892.0,67891.0,0.08842]
[1717290295719,0.22953446,67892.0,67891.0,0.08842]
[1717290297915,0.228694,67891.0,67890.0,0.08842]
[1717290298132,0.47143646,67891.0,67890.0,0.08842]
[1717290298304,0.4774547,67891.0,67890.0,0.08842]
[1717290298874,0.4774547,67891.0,67888.0,1.51743129]
[1717290298875,0.147297,67890.0,67889.0,0.08842]
[1717290299082,0.2295573,67890.0,67889.0,0.08842]
[1717290299284,0.27374902,67890.0,67889.0,0.08842]
[1717290301072,0.27474902,67890.0,67889.0,0.08942]
[1717290301513,0.27374902,67890.0,67889.0,0.08842]
[1717290301715,0.28674902,67890.0,67889.0,0.08842]
[1717290301920,0.147299,67889.0,67888.0,1.51743129]
[1717290302123,0.22354146,67889.0,67888.0,1.51743129]
[1717290302429,0.2737514,67889.0,67888.0,1.51743129]
[1717290303375,0.22955968,67889.0,67888.0,1.51743129]
[1717290303829,1.0081474,67889.0,67888.0,1.5]
[1717290304025,1.34093499,67889.0,67888.0,1.5]
[1717290304204,1.27713499,67889.0,67888.0,1.5]
[1717290304411,1.34758461,67889.0,67888.0,1.5]
[1717290304612,1.24045568,67889.0,67888.0,1.5]
[1717290304981,1.23045568,67889.0,67888.0,1.5]
[1717290305351,1.37685645,67889.0,67888.0,1.5]
[1717290305757,1.26645568,67889.0,67888.0,1.5]
[1717290306189,1.31305606,67889.0,67888.0,1.5]
[1717290306387,1.26645568,67889.0,67888.0,1.5]
[1717290307428,1.26621589,67889.0,67888.0,1.5]
[1717290307603,1.35450513,67889.0,67888.0,1.5]
[1717290310402,1.26621589,67889.0,67888.0,1.5]
[1717290313311,1.33239386,67889.0,67888.0,1.5]
[1717290316572,1.47817177,67889.0,67888.0,1.5]
[1717290316782,1.50117177,67889.0,67888.0,1.5]
[1717290316955,1.52323704,67889.0,67888.0,1.5]
[1717290317157,1.82521493,67889.0,67888.0,1.5]
[1717290317364,1.84727574,67889.0,67888.0,1.5]
[1717290317579,1.80389585,67889.0,67888.0,1.5]
[1717290317863,1.83989585,67889.0,67888.0,1.5]
[1717290318175,1.84727574,67889.0,67888.0,1.5]
[1717290318376,1.83989585,67889.0,67888.0,1.5]
[1717290318595,1.84727574,67889.0,67888.0,1.5]
[1717290319028,1.83989585,67889.0,67888.0,1.5]
[1717290319286,1.84727574,67889.0,67888.0,1.5]
[1717290319973,1.94727574,67889.0,67888.0,1.5]
[1717290321166,1.91127574,67889.0,67888.0,1.5]
[1717290321418,1.83527307,67889.0,67888.0,1.5]
[1717290321550,1.90960306,67889.0,67888.0,1.49548134]
[1717290321776,2.0599256,67889.0,67888.0,1.49548134]
[1717290321939,2.05254571,67889.0,67888.0,1.49548134]
[1717290322360,2.08854571,67889.0,67888.0,1.49548134]
[1717290322573,2.0959256,67889.0,67888.0,1.49548134]
[1717290323200,1.98562155,67889.0,67888.0,1.49548134]
[1717290325891,2.13142709,67889.0,67888.0,1.49548134]
[1717290326481,1.98562155,67889.0,67888.0,1.49548134]
[1717290327457,1.91362155,67889.0,67888.0,1.49548134]
[1717290327855,1.94962155,67889.0,67888.0,1.49548134]
[1717290328418,1.98562155,67889.0,67888.0,1.49548134]
[1717290328625,1.97825536,67889.0,67888.0,1.49548134]
[1717290328825,2.1240609,67889.0,67888.0,1.49548134]
[1717290329477,2.14514735,67889.0,67888.0,1.49548134]
[1717290329600,2.05082144,67889.0,67888.0,1.49548134]
[1717290329805,2.18308569,67889.0,67888.0,1.49548134]
[1717290330447,2.18302701,67889.0,67888.0,1.49548134]
[1717290330700,2.05082144,67889.0,67888.0,1.49548134]
[1717290331047,2.08682144,67889.0,67888.0,1.49548134]
[1717290331450,2.05082144,67889.0,67888.0,1.49548134]
[1717290331648,2.08782144,67889.0,67888.0,1.49548134]
[1717290334871,2.21999616,67889.0,67888.0,1.49548134]
[1717290335394,2.08782144,67889.0,67888.0,1.49548134]
[1717290335607,2.21999441,67889.0,67888.0,1.49548134]
[1717290336439,2.08262076,67889.0,67888.0,1.49548134]
[1717290336661,2.21479469,67889.0,67888.0,1.49548134]
[1717290337068,2.15099469,67889.0,67888.0,1.49548134]
[1717290337275,2.37721876,67889.0,67888.0,1.01498134]
[1717290338029,2.40029335,67889.0,67888.0,1.01498134]
[1717290338438,2.36329335,67889.0,67888.0,1.01498134]
[1717290338898,2.40029335,67889.0,67888.0,1.01498134]
[1717290340082,2.94929335,67889.0,67888.0,0.85496475]
[1717290340506,2.94929335,67889.0,67888.0,7.5e-07]
[1717290340680,2.40029335,67889.0,67888.0,7.5e-07]
[1717290341102,2.36329335,67889.0,67888.0,7.5e-07]
[1717290342030,2.40029335,67889.0,67888.0,7.5e-07]
[1717290342788,2.5539085,67889.0,67888.0,7.5e-07]
[1717290342987,2.70453559,67889.0,67888.0,7.5e-07]
[1717290343922,2.99913359,67889.0,67888.0,7.5e-07]
[1717290344521,2.96213359,67889.0,67888.0,7.5e-07]
[1717290344949,2.99913359,67889.0,67888.0,7.5e-07]
[1717290345365,2.93533359,67889.0,67888.0,7.5e-07]
[1717290345557,3.03613359,67889.0,67888.0,7.5e-07]
[1717290347479,3.04471602,67889.0,67888.0,7.5e-07]
[1717290350961,3.10372402,67889.0,67888.0,7.5e-07]
[1717290358050,2.94842402,67889.0,67888.0,7.5e-07]
[1717290358634,2.65382602,67889.0,67888.0,7.5e-07]
[1717290362150,2.65277973,67889.0,67888.0,7.5e-07]
[1717290368860,1.97320589,67882.0,67881.0,7.5e-07]
[1717290369060,2.63657712,67882.0,67881.0,7.5e-07]
[1717290369482,2.78945477,67882.0,67881.0,7.5e-07]
[1717290369818,1.13866889,67876.0,67875.0,0.1538]
[1717290370030,1.64913965,67876.0,67875.0,0.1538]
[1717290370246,1.65623458,67876.0,67875.0,0.1538]
[1717290371915,1.62205469,67876.0,67875.0,0.2294]
[1717290372352,1.68585469,67876.0,67875.0,0.2294]
[1717290373059,1.71644806,67876.0,67875.0,0.2294]
[1717290373424,1.45264806,67876.0,67875.0,0.2294]
[1717290373885,1.5851674,67876.0,67875.0,0.2294]
[1717290374630,1.41564806,67876.0,67875.0,0.2294]
[1717290374826,1.45164806,67876.0,67875.0,0.2294]
[1717290375029,1.58418281,67876.0,67875.0,0.2294]
[1717290375411,1.68418281,67876.0,67875.0,0.2294]
[1717290377393,1.2437509,67876.0,67875.0,0.2294]
[1717290377599,1.2437509,67876.0,67875.0,0.2932]
[1717290377802,1.11121615,67876.0,67875.0,0.2294]
[1717290378194,1.00205434,67876.0,67875.0,0.2294]
[1717290379069,0.97905434,67876.0,67875.0,0.2294]
[1717290379269,0.97905434,67876.0,67875.0,0.32202011]
[1717290379681,0.97905434,67876.0,67875.0,0.2294]
[1717290380743,0.9103233,67876.0,67875.0,0.2294]
[1717290380963,0.97192115,67876.0,67875.0,0.2294]
[1717290383171,0.97192115,67876.0,67875.0,0.2932]
[1717290385108,0.97192115,67876.0,67875.0,0.2294]
[1717290385320,0.97192115,67876.0,67875.0,0.2932]
[1717290386183,0.97192115,67876.0,67875.0,0.2294]
[1717290387346,1.14069906,67876.0,67875.0,0.2294]
[1717290389326,1.13526223,67876.0,67875.0,0.2294]
[1717290400291,1.23222222,67876.0,67875.0,0.2294]
[1717290400618,1.13526223,67876.0,67875.0,0.2294]
[1717290401076,1.23191179,67876.0,67875.0,0.2294]
[1717290401750,0.442047,67866.0,67865.0,0.1592]
[1717290401951,0.62120802,67866.0,67865.0,0.1592]
[1717290402226,0.62791548,67866.0,67865.0,0.2343]
[1717290404216,0.73018456,67866.0,67865.0,0.2343]
[1717290408214,0.66391548,67866.0,67865.0,0.2343]
[1717290410584,0.66391548,67866.0,67865.0,0.2981]
[1717290411077,0.73148949,67866.0,67865.0,0.2981]
[1717290411352,0.73148949,67866.0,67865.0,0.32692011]
[1717290411588,0.73148949,67866.0,67865.0,0.2343]
[1717290412326,0.66520029,67866.0,67865.0,0.2343]
[1717290413079,0.73149522,67866.0,67865.0,0.2343]
[1717290413340,0.73149522,67866.0,67865.0,0.32692011]
[1717290414261,0.66520029,67866.0,67865.0,0.32692011]
[1717290414401,0.66520029,67866.0,67865.0,0.2343]
[1717290415084,0.66520029,67866.0,67865.0,0.33192011]
[1717290415298,0.66520029,67866.0,67865.0,0.32692011]
[1717290415510,0.66520029,67866.0,67865.0,0.33192011]
[1717290417435,0.66520029,67866.0,67865.0,0.32692011]
[1717290417657,0.66520029,67866.0,67865.0,0.33192011]
[1717290418075,0.75358236,67866.0,67865.0,0.33192011]
[1717290422598,0.66432583,67866.0,67865.0,0.33192011]
[1717290423243,0.75276595,67866.0,67865.0,0.33192011]
[1717290424010,0.75276595,67866.0,67865.0,0.39572011]
[1717290424599,0.43506795,67866.0,67865.0,0.39572011]
[1717290425276,0.41296032,67866.0,67865.0,0.39572011]
[1717290425500,0.34662783,67866.0,67865.0,0.39572011]
[1717290426335,0.34662783,67866.0,67865.0,0.48414011]
[1717290426547,0.09927883,67866.0,67865.0,0.48414011]
[1717290426760,0.04270746,67866.0,67865.0,0.48414011]
[1717290428760,0.04270746,67866.0,67865.0,0.42034011]
[1717290428974,0.04270746,67866.0,67865.0,0.48414011]
[1717290429201,0.19005646,67866.0,67865.0,0.48414011]
[1717290429433,0.19005646,67866.0,67865.0,0.32272]
[1717290429641,0.19005646,67866.0,67865.0,0.48414011]
[1717290429848,0.24745725,67866.0,67865.0,0.48414011]
[1717290430681,0.24745725,67866.0,67865.0,0.42034011]
[1717290430884,0.29167747,67866.0,67865.0,0.48414011]
[1717290432707,0.24745725,67866.0,67865.0,0.48414011]
[1717290432945,0.29182504,67866.0,67865.0,0.2194]
[1717290433170,0.147351,67865.0,67864.0,0.09762011]
[1717290433388,0.147351,67865.0,67862.0,0.1556]
[1717290433389,0.147355,67863.0,67862.0,0.24822011]
[1717290433612,0.20491404,67863.0,67862.0,0.31202011]
[1717290433828,0.21301693,67863.0,67862.0,0.31202011]
[1717290434201,0.21301693,67863.0,67862.0,0.31702011]
[1717290434791,0.2128888,67863.0,67862.0,0.31702011]
[1717290435014,0.2488888,67863.0,67862.0,0.31702011]
[1717290443854,0.2488888,67863.0,67862.0,0.25322011]
[1717290444064,0.2488888,67863.0,67862.0,0.31702011]
[1717290446800,0.19145789,67863.0,67862.0,0.31702011]
[1717290449327,0.24788186,67863.0,67862.0,0.31702011]
[1717290449563,0.19145789,67863.0,67862.0,0.31702011]
[1717290450325,0.24779267,67863.0,67862.0,0.31702011]
[1717290454059,0.24779267,67863.0,67853.0,0.02610832]
[1717290454060,0.147375,67854.0,67853.0,0.10619011]
[1717290454293,0.147375,67854.0,67853.0,0.16999011]
[1717290454461,0.15547463,67854.0,67853.0,0.16999011]
[1717290454708,0.15547463,67854.0,67853.0,0.32799011]
[1717290455621,0.16247463,67854.0,67853.0,0.32899011]
[1717290460429,0.16247463,67854.0,67853.0,0.26519011]
[1717290460656,0.16247463,67854.0,67853.0,0.32899011]
[1717290472052,0.16247463,67854.0,67853.0,0.26519011]
[1717290472232,0.16247463,67854.0,67853.0,0.32899011]
[1717290473865,0.16247463,67854.0,67853.0,0.26519011]
[1717290474202,0.16247463,67854.0,67853.0,0.32899011]
[1717290475804,0.16247463,67854.0,67853.0,0.26519011]
[1717290475969,0.16247463,67854.0,67853.0,0.32899011]
[1717290481724,0.16247463,67854.0,67853.0,0.49421011]
[1717290484012,0.23074258,67854.0,67853.0,0.49421011]
[1717290485076,0.16247463,67854.0,67853.0,0.49421011]
[1717290486750,0.1544911,67854.0,67853.0,0.49421011]
[1717290494804,0.1544911,67854.0,67853.0,0.43041011]
[1717290494974,0.1544911,67854.0,67853.0,0.49421011]
[1717290496587,0.1544911,67854.0,67853.0,0.41741011]
[1717290496789,0.1544911,67854.0,67853.0,0.25941011]
[1717290499723,0.1544911,67854.0,67853.0,0.19561011]
[1717290499928,0.1544911,67854.0,67853.0,0.25941011]
[1717290499929,0.2359911,67854.0,67853.0,0.25941011]
[1717290505777,0.2359911,67854.0,67853.0,0.19561011]
[1717290505987,0.2359911,67854.0,67853.0,0.25941011]
[1717290506433,0.2359911,67854.0,67853.0,0.19561011]
[1717290506670,0.2359911,67854.0,67853.0,0.25941011]
[1717290510432,0.1544911,67854.0,67853.0,0.25941011]
[1717290514825,0.1544911,67854.0,67853.0,0.49581011]
[1717290536403,0.1544911,67854.0,67853.0,0.43201011]
[1717290536573,0.1544911,67854.0,67853.0,0.41891011]
[1717290537778,0.1544911,67854.0,67853.0,0.25941011]
[1717290546881,0.1544911,67854.0,67853.0,0.19561011]
[1717290547126,0.1544911,67854.0,67853.0,0.25941011]
[1717290549725,0.1544911,67854.0,67853.0,0.19561011]
[1717290549894,0.1544911,67854.0,67853.0,0.25941011]
[1717290550364,0.1544911,67854.0,67853.0,0.19561011]
[1717290550515,0.1544911,67854.0,67853.0,0.25941011]
[1717290555832,0.23850023,67854.0,67853.0,0.25941011]
[1717290556018,0.23850023,67854.0,67853.0,0.19561011]
[1717290556172,0.23850023,67854.0,67853.0,0.25941011]
[1717290560167,0.23850023,67854.0,67853.0,0.19561011]
[1717290560520,0.23850023,67854.0,67853.0,0.25941011]
[1717290562647,0.1544911,67854.0,67853.0,0.25941011]
[1717290562849,0.2361003,67854.0,67853.0,0.25941011]
[1717290567186,0.2361003,67854.0,67853.0,0.19561011]
[1717290567355,0.2361003,67854.0,67853.0,0.25941011]
[1717290572644,0.8656503,67854.0,67853.0,0.00957]
[1717290572852,0.8886503,67854.0,67853.0,0.00957]
[1717290573059,0.8886503,67854.0,67853.0,0.07337]
[1717290573303,0.97712827,67854.0,67853.0,0.07337]
[1717290573523,0.97012827,67854.0,67853.0,0.07237]
[1717290573961,0.98812827,67854.0,67853.0,0.07337]
[1717290574165,0.8996503,67854.0,67853.0,0.07337]
[1717290575132,0.8816503,67854.0,67853.0,0.07237]
[1717290575688,0.9086503,67854.0,67853.0,0.07237]
[1717290576566,0.97497832,67854.0,67853.0,0.07237]
[1717290577044,0.89336912,67854.0,67853.0,0.07237]
[1717290577248,0.97571811,67854.0,67853.0,0.07237]
[1717290578668,0.97571811,67854.0,67853.0,0.00857]
[1717290579357,1.27046811,67854.0,67853.0,0.00857]
[1717290580443,1.20414586,67854.0,67853.0,0.00857]
[1717290580823,1.27045234,67854.0,67853.0,0.00857]
[1717290581019,1.27045241,67854.0,67853.0,0.00857]
[1717290581437,1.20414586,67854.0,67853.0,0.00857]
[1717290583077,1.20422151,67854.0,67853.0,0.00857]
[1717290583855,1.22922151,67854.0,67853.0,0.01057]
[1717290584642,1.29552049,67854.0,67853.0,0.01057]
[1717290587118,1.22922151,67854.0,67853.0,0.01057]
[1717290588045,1.29552049,67854.0,67853.0,0.01057]
[1717290589138,1.22922151,67854.0,67853.0,0.01057]
[1717290592780,1.37499942,67854.0,67853.0,0.01057]
[1717290594009,1.34799942,67854.0,67853.0,0.01057]
[1717290594188,1.32299942,67854.0,67853.0,0.00857]
[1717290594390,1.35899942,67854.0,67853.0,0.00857]
[1717290594985,1.39499942,67854.0,67853.0,0.00857]
[1717290595382,1.4612984,67854.0,67853.0,0.00857]
[1717290595611,1.4972984,67854.0,67853.0,0.00857]
[1717290595946,1.4612984,67854.0,67853.0,0.00857]
[1717290597117,1.4972984,67854.0,67853.0,0.00857]
[1717290598286,1.4252984,67854.0,67853.0,0.00857]
[1717290598523,1.4612984,67854.0,67853.0,0.00857]
[1717290598731,1.3870835,67854.0,67853.0,0.00857]
[1717290598891,1.4230835,67854.0,67853.0,0.00857]
[1717290599092,1.4590835,67854.0,67853.0,0.00857]
[1717290599479,1.4230835,67854.0,67853.0,0.00857]
[1717290599677,1.4590835,67854.0,67853.0,0.00857]
[1717290603304,1.39281407,67854.0,67853.0,0.00857]
[1717290606103,1.39118497,67854.0,67853.0,0.00857]
[1717290608116,1.40848371,67854.0,67853.0,0.00857]
[1717290608319,1.50848371,67854.0,67853.0,0.00857]
[1717290608513,1.49118497,67854.0,67853.0,0.00857]
[1717290608710,1.50848462,67854.0,67853.0,0.00857]
[1717290609916,1.50848462,67854.0,67853.0,0.008297]
[1717290610682,1.59684387,67854.0,67853.0,0.008297]
[1717290610883,1.81061451,67854.0,67853.0,0.008297]
[1717290611114,1.92106357,67854.0,67853.0,0.008297]
[1717290612339,2.0390061,67854.0,67853.0,0.008297]
[1717290612940,2.05789895,67854.0,67853.0,0.008297]
[1717290613150,1.82950736,67854.0,67853.0,0.008297]
[1717290613376,1.87439992,67854.0,67853.0,0.008297]
[1717290613785,1.91039992,67854.0,67853.0,0.008297]
[1717290613984,1.87439992,67854.0,67853.0,0.008297]
[1717290614432,1.91039992,67854.0,67853.0,0.008297]
[1717290614802,1.13921789,67840.0,67839.0,0.00857]
[1717290615087,1.13921789,67840.0,67832.0,0.00857]
[1717290615088,0.10737989,67836.0,67832.0,0.00857]
[1717290615261,1.43006189,67835.0,67832.0,0.00857]
[1717290615677,1.43006189,67835.0,67820.0,0.00857]
[1717290615678,0.84451489,67830.0,67820.0,0.00857]
[1717290615888,1.48939989,67828.0,67820.0,0.00857]
[1717290616116,2.30191075,67828.0,67820.0,0.00857]
[1717290616337,2.34358012,67828.0,67820.0,0.00857]
[1717290617263,2.14671367,67828.0,67820.0,0.00857]
[1717290617538,2.47336231,67828.0,67820.0,0.00857]
[1717290617797,2.50936231,67828.0,67820.0,0.00857]
[1717290617999,2.35631429,67828.0,67820.0,0.00857]
[1717290618199,2.49369441,67828.0,67820.0,0.00857]
[1717290619173,2.5010743,67828.0,67820.0,0.00857]
[1717290619910,2.15232512,67828.0,67820.0,0.00857]
[1717290620101,2.49922418,67828.0,67820.0,0.00857]
[1717290621374,2.42804429,67828.0,67820.0,0.00857]
[1717290621506,2.49184429,67828.0,67820.0,0.00857]
[1717290622536,2.42804429,67828.0,67820.0,0.00857]
[1717290623197,1.62108129,67828.0,67822.0,0.0638]
[1717290623535,1.54178129,67828.0,67822.0,0.0638]
[1717290623811,1.54178129,67828.0,67820.0,0.07237]
[1717290624548,1.62108129,67828.0,67820.0,0.00857]
[1717290629345,1.61889471,67828.0,67820.0,0.00857]
[1717290630468,1.61893871,67828.0,67820.0,0.00857]
[1717290632450,1.61893898,67828.0,67820.0,0.00857]
[1717290635104,1.62631887,67828.0,67820.0,0.00857]
[1717290635954,1.61893898,67828.0,67820.0,0.00857]
[1717290636300,1.62631887,67828.0,67820.0,0.00857]
[1717290636959,1.61893898,67828.0,67820.0,0.00857]
[1717290638090,1.62629093,67828.0,67820.0,0.00857]
[1717290640526,1.62629093,67828.0,67822.0,0.1512]
[1717290642446,1.62629093,67828.0,67820.0,0.00857]
[1717290642655,1.62608296,67828.0,67820.0,0.00857]
[1717290643329,1.92094596,67828.0,67820.0,0.00857]
[1717290645544,1.99212585,67828.0,67820.0,0.00857]
[1717290645739,1.92094596,67828.0,67820.0,0.00857]
[1717290645941,2.0112379,67828.0,67820.0,0.00857]
[1717290646149,2.15312585,67828.0,67820.0,0.00857]
[1717290646350,2.18977031,67828.0,67820.0,0.00857]
[1717290646565,2.14574596,67828.0,67820.0,0.00857]
[1717290646789,2.18976667,67828.0,67820.0,0.00857]
[1717290647899,2.08194596,67828.0,67820.0,0.00857]
[1717290650176,2.29110752,67828.0,67820.0,0.00857]
[1717290650410,2.3571595,67828.0,67820.0,0.00857]
[1717290650819,2.36453939,67828.0,67820.0,0.00857]
[1717290651364,2.29794999,67828.0,67820.0,0.00857]
[1717290652458,2.38601929,67828.0,67820.0,0.00857]
[1717290652786,2.16643138,67828.0,67820.0,0.00857]
[1717290653245,2.72603692,67828.0,67820.0,0.00857]
[1717290653447,2.63796762,67828.0,67820.0,0.00857]
[1717290653647,2.49216208,67828.0,67820.0,0.00857]
[1717290654177,2.60233056,67828.0,67820.0,0.00857]
[1717290654750,2.82191847,67828.0,67820.0,0.00857]
[1717290655411,2.71174999,67828.0,67820.0,0.00857]
[1717290656033,2.41688699,67828.0,67820.0,0.00857]
[1717290656267,2.18969908,67828.0,67820.0,0.00857]
[1717290656801,2.37507339,67828.0,67820.0,0.00857]
[1717290658384,2.1657207,67828.0,67820.0,0.00857]
[1717290659300,2.29804481,67828.0,67820.0,0.00857]
[1717290660202,2.1657207,67828.0,67820.0,0.00857]
[1717290660590,2.20536203,67828.0,67820.0,0.00857]
[1717290661526,2.1657207,67828.0,67820.0,0.00857]
[1717290663150,2.20316355,67828.0,67820.0,0.00857]
[1717290663434,2.16716355,67828.0,67820.0,0.00857]
[1717290663614,2.13116355,67828.0,67820.0,0.00857]
[1717290663785,2.20416355,67828.0,67820.0,0.00857]
[1717290664151,2.55406886,67828.0,67820.0,0.00857]
[1717290664359,2.51806886,67828.0,67820.0,0.00857]
[1717290664767,2.55406886,67828.0,67820.0,0.00857]
[1717290664935,2.59106886,67828.0,67820.0,0.00857]
[1717290665794,2.52726886,67828.0,67820.0,0.00857]
[1717290665940,2.44526332,67828.0,67820.0,0.00857]
[1717290667309,2.23748295,67828.0,67820.0,0.00857]
[1717290668390,2.23010306,67828.0,67820.0,0.00857]
[1717290669325,2.23748295,67828.0,67820.0,0.00857]
[1717290669493,2.23010306,67828.0,67820.0,0.00857]
[1717290669731,2.31071989,67828.0,67820.0,0.00857]
[1717290669932,2.31809978,67828.0,67820.0,0.00857]
[1717290670069,2.01158885,67828.0,67820.0,0.00857]
[1717290671078,2.04955509,67828.0,67820.0,0.00857]
[1717290671889,2.34441809,67828.0,67820.0,0.00857]
[1717290672124,2.36133618,67828.0,67820.0,0.00857]
[1717290672526,2.32336994,67828.0,67820.0,0.00857]
[1717290672881,2.36130747,67828.0,67820.0,0.00857]
[1717290673947,2.32336994,67828.0,67820.0,0.00857]
[1717290674367,2.36130725,67828.0,67820.0,0.00857]
[1717290675369,2.32336994,67828.0,67820.0,0.00857]
[1717290675747,2.36130734,67828.0,67820.0,0.00857]
[1717290676357,1.22185989,67824.0,67820.0,0.00857]
[1717290676587,1.72313037,67824.0,67820.0,0.00857]
[1717290677376,1.75913037,67824.0,67820.0,0.00857]
[1717290677711,1.79613037,67824.0,67820.0,0.00857]
[1717290678234,1.83313037,67824.0,67820.0,0.00857]
[1717290679003,1.79713037,67824.0,67820.0,0.00857]
[1717290679340,1.9726179,67824.0,67820.0,0.00857]
[1717290681305,4.3436179,67824.0,67820.0,0.00857]
[1717290681430,7.0226179,67824.0,67820.0,0.00857]